bitfinex-derivatives/quotes_ETHF0:USTF0_20250309
["timestamp","ask_amount","ask_price","bid_price","bid_amount"]
[1741479390316,0.00678887,2208.5,2208.0,0.91834984]
[1741479390511,0.00678887,2208.5,2208.1,1.959]
[1741479390712,1.959,2208.8,2208.2,0.5981]
[1741479390913,1.959,2208.8,2208.3,1.2274]
[1741479393312,3.2078,2208.9,2208.3,1.2274]
[1741479393517,3.2078,2208.9,2208.5,0.54345]
[1741479393821,0.6497,2209.0,2208.6,0.6025]
[1741479394014,0.6497,2209.0,2208.7,0.6316]
[1741479394216,0.6497,2209.0,2208.7,1.2827]
[1741479399013,3.2078,2209.3,2208.7,4.2677]
[1741479399220,3.2078,2209.3,2208.7,8.01889]
[1741479399421,3.2078,2209.3,2208.7,7.4755]
[1741479399815,3.2078,2209.3,2208.7,8.0189]
[1741479400321,3.2078,2209.3,2208.7,7.4755]
[1741479400520,3.2078,2209.3,2208.8,0.54337]
[1741479401023,3.2078,2209.3,2208.7,8.01889]
[1741479401524,3.2078,2209.3,2208.7,7.4755]
[1741479401718,3.2078,2209.3,2208.7,8.01889]
[1741479403325,1.2212,2209.4,2208.7,4.81109]
[1741479403519,3.2078,2209.3,2208.7,4.81109]
[1741479404618,3.2078,2209.3,2208.7,4.2677]
[1741479408017,3.2078,2209.3,2208.7,1.2827]
[1741479408620,3.2078,2209.3,2208.8,0.54336]
[1741479410229,3.2078,2209.3,2208.7,1.2827]
[1741479410419,3.2078,2209.3,2208.9,0.54334]
[1741479410621,3.2078,2209.3,2209.0,0.6093]
[1741479410926,3.2078,2209.3,2209.1,1.2178]
[1741479411115,3.2078,2209.3,2209.2,0.0905305]
[1741479412521,1.2212,2209.4,2209.2,0.0905305]
[1741479416321,2.6149,2209.7,2209.3,0.54324]
[1741479416521,2.6149,2209.7,2209.4,0.74142231]
[1741479416825,3.2078,2210.1,2209.5,3.90761821]
[1741479417021,3.2078,2210.1,2209.5,8.05280821]
[1741479417223,3.2078,2210.1,2209.8,3.2078]
[1741479417523,3.2078,2210.1,2209.9,0.09050183]
[1741479418238,1.2403,2210.0,2209.9,0.09050183]
[1741479419425,0.6353,2210.3,2209.9,0.09050183]
[1741479419734,1.2468,2210.4,2210.0,0.6073]
[1741479419933,1.2468,2210.4,2210.0,1.2406]
[1741479420624,1.2468,2210.4,2210.1,0.09049364]
[1741479422120,1.2468,2210.4,2210.1,3.29829364]
[1741479422325,1.2667,2210.7,2210.2,2.50502]
[1741479422628,0.6265,2210.7,2210.3,0.09048545]
[1741479423431,0.6068,2210.6,2210.3,0.09048545]
[1741479425533,0.6268,2210.5,2210.3,0.09048545]
[1741479438243,3.2078,2210.4,2210.3,0.09048545]
[1741479439540,0.6268,2210.5,2210.3,0.09048545]
[1741479439849,3.2078,2210.4,2210.3,0.09048545]
[1741479443446,9.1698,2210.4,2209.7,0.5889]
[1741479443748,3.2078,2210.1,2209.6,3.2078]
[1741479444047,1.2407,2210.0,2209.6,3.2078]
[1741479444435,0.6476,2209.9,2209.6,3.2078]
[1741479447556,1.96,2210.3,2209.6,3.2078]
[1741479447738,3.8373,2210.3,2209.7,0.6055]
[1741479447937,3.8373,2210.3,2209.8,0.588]
[1741479448152,3.8373,2210.3,2209.8,1.213]
[1741479448452,3.2078,2210.1,2209.8,1.213]
[1741479448650,3.8373,2210.3,2209.8,1.213]
[1741479448850,3.2078,2210.1,2209.8,1.213]
[1741479449149,3.8373,2210.3,2209.8,1.213]
[1741479449343,3.8373,2210.3,2209.8,0.588]
[1741479449544,3.2078,2210.1,2209.6,3.2078]
[1741479449841,3.2078,2210.1,2209.6,3.8093]
[1741479453155,3.8373,2210.3,2209.6,4.35246]
[1741479455151,3.8373,2210.3,2209.6,3.8093]
[1741479455648,3.8373,2210.3,2209.6,4.35247]
[1741479456451,3.2078,2210.1,2209.6,3.8093]
[1741479457651,3.8373,2210.3,2209.6,3.8093]
[1741479457847,3.2078,2210.1,2209.6,3.8093]
[1741479458348,3.8373,2210.3,2209.6,3.8093]
[1741479460760,3.2078,2210.1,2209.6,3.8093]
[1741479467768,3.8373,2210.3,2209.6,3.8093]
[1741479468665,3.2078,2210.1,2209.6,3.8093]
[1741479469160,3.2078,2210.1,2209.6,4.35245]
[1741479469360,3.8353,2210.3,2209.6,3.8093]
[1741479469561,3.8353,2210.3,2209.6,4.35247]
[1741479470066,3.8353,2210.3,2209.6,3.8093]
[1741479470864,3.2078,2210.1,2209.6,3.8093]
[1741479472871,3.8353,2210.3,2209.6,3.8093]
[1741479473366,3.8353,2210.3,2209.6,4.35248]
[1741479475665,3.8353,2210.3,2209.6,3.8093]
[1741479475870,3.8353,2210.3,2209.6,4.35247]
[1741479477884,3.8353,2210.3,2209.6,3.8093]
[1741479481078,3.8353,2210.3,2209.6,4.35247]
[1741479481684,3.2078,2210.1,2209.6,4.35247]
[1741479482386,3.2078,2210.1,2209.6,3.8093]
[1741479482587,3.2078,2210.1,2209.6,4.35248]
[1741479482884,3.8353,2210.3,2209.6,4.35248]
[1741479483088,3.8353,2210.3,2209.6,3.8093]
[1741479483279,3.8353,2210.3,2209.6,4.35246]
[1741479483886,3.8353,2210.3,2209.6,3.8093]
[1741479484084,3.2078,2210.1,2209.6,3.8093]
[1741479485380,3.8353,2210.3,2209.6,4.35248]
[1741479486290,3.2078,2210.2,2209.6,4.35248]
[1741479488196,1.8773,2210.3,2209.6,3.8093]
[1741479488388,1.8773,2210.3,2209.6,4.35246]
[1741479489387,3.2078,2210.2,2209.6,4.35246]
[1741479490290,3.2078,2210.6,2209.9,3.2078]
[1741479490494,1.958,2210.7,2210.0,2.45487]
[1741479490893,1.958,2210.7,2210.0,1.9118]
[1741479491086,1.958,2210.7,2210.1,0.54305]
[1741479491485,1.2577,2210.8,2210.1,0.54305]
[1741479491700,1.2577,2210.8,2210.0,2.45487]
[1741479492091,1.2577,2210.8,2210.0,1.9118]
[1741479492397,1.2577,2210.8,2210.0,2.45487]
[1741479493500,0.6296,2210.7,2210.0,1.9118]
[1741479493999,0.6296,2210.7,2210.0,2.45488]
[1741479495591,0.6296,2210.7,2210.0,1.9118]
[1741479495786,3.2078,2210.5,2210.0,1.9118]
[1741479495989,1.2446,2210.4,2210.0,1.9118]
[1741479496393,0.6153,2210.3,2210.0,1.9118]
[1741479496583,0.6153,2210.3,2210.0,1.2825]
[1741479496785,0.6153,2210.3,2209.8,3.1427]
[1741479496996,0.6153,2210.3,2209.8,3.7373]
[1741479498096,3.2078,2210.2,2209.8,1.7803]
[1741479499000,0.6153,2210.3,2209.8,1.7803]
[1741479502202,3.2078,2210.2,2209.8,1.7803]
[1741479503594,3.2078,2210.2,2209.8,1.1828]
[1741479507903,3.2078,2209.9,2209.3,3.21458887]
[1741479508207,1.2258,2209.8,2209.4,0.5901]
[1741479508408,1.8276,2209.8,2209.4,0.5901]
[1741479508804,1.8276,2209.8,2209.3,3.21458887]
[1741479509105,1.8276,2209.8,2209.3,0.00678887]
[1741479509294,3.2078,2209.5,2209.3,0.00678887]
[1741479509499,1.2258,2209.4,2208.9,3.56456414]
[1741479509699,1.8276,2209.4,2208.9,3.56456414]
[1741479509901,1.8276,2209.4,2208.7,0.5901]
[1741479510704,0.00678887,2209.3,2208.8,0.00678887]
[1741479511508,0.00678887,2209.3,2208.8,0.3714367]
[1741479511717,3.2078,2209.2,2208.8,0.00678887]
[1741479512510,1.958,2209.1,2208.8,0.00678887]
[1741479512811,0.6104,2209.0,2208.8,0.00678887]
[1741479513012,1.1983,2209.0,2208.8,0.00678887]
[1741479514513,3.2078,2208.9,2208.8,0.00678887]
[1741479514706,3.8062,2208.9,2208.8,0.00678887]
[1741479517410,3.8062,2208.9,2208.3,3.2078]
[1741479518715,3.8062,2208.9,2208.4,0.00678887]
[1741479519918,1.1983,2209.0,2208.4,0.65738887]
[1741479519919,2.5684,2209.0,2208.4,0.65738887]
[1741479520110,1.958,2209.0,2208.4,0.65738887]
[1741479520306,3.2078,2209.1,2208.4,0.65738887]
[1741479521417,3.2078,2209.1,2208.4,1.20085887]
[1741479521619,3.2078,2209.1,2208.4,3.15884887]
[1741479522115,3.2078,2209.1,2208.4,0.65738887]
[1741479523621,2.5755,2209.2,2208.4,0.65738887]
[1741479523622,3.2078,2208.8,2208.4,0.00678887]
[1741479523913,1.8617,2208.7,2208.4,0.00678887]
[1741479528224,3.2078,2208.5,2208.4,0.00678887]
[1741479529223,3.2078,2208.5,2207.9,1.2441]
[1741479529224,7.2078,2208.5,2207.9,1.2441]
[1741479529425,3.2078,2208.2,2207.7,3.8535]
[1741479529616,1.2416,2208.1,2207.8,1.2569]
[1741479531521,1.8741,2208.1,2207.7,0.00678887]
[1741479532626,1.2416,2208.1,2207.7,0.00678887]
[1741479533717,3.2078,2207.8,2207.7,0.00678887]
[1741479537025,4.4494,2208.1,2207.7,0.00678887]
[1741479537227,3.2078,2208.1,2207.7,0.00678887]
[1741479537428,3.2078,2208.1,2207.7,0.61608887]
[1741479537631,3.2078,2208.1,2207.7,1.25778887]
[1741479538419,0.00678887,2208.2,2207.8,5.1668]
[1741479538626,7.527,2209.3,2207.8,5.1668]
[1741479538627,1.959,2208.7,2208.1,3.2078]
[1741479538825,5.1668,2208.9,2208.2,1.2292]
[1741479539027,5.1668,2208.9,2208.2,1.8578]
[1741479539724,0.00678887,2208.8,2208.2,1.8578]
[1741479542228,0.00678887,2208.8,2208.4,3.2078]
[1741479542730,0.00678887,2208.8,2208.4,6.1928]
[1741479542930,0.00678887,2208.8,2208.6,0.5434]
[1741479543125,0.00678887,2208.8,2208.7,1.2209]
[1741479543327,3.2078,2209.4,2208.7,5.0207]
[1741479543835,3.2078,2209.6,2209.0,3.2078]
[1741479544532,0.00678887,2209.5,2209.1,0.55007887]
[1741479544731,0.00678887,2209.5,2209.2,0.628]
[1741479545129,0.00678887,2209.5,2209.2,1.2329]
[1741479545937,0.00678887,2209.5,2209.2,0.6049]
[1741479546437,3.2078,2209.4,2209.1,0.00678887]
[1741479546941,0.5899,2209.3,2209.1,0.00678887]
[1741479547134,5.1738,2209.4,2209.1,0.00678887]
[1741479547335,3.2078,2209.4,2209.1,0.00678887]
[1741479547527,0.00678887,2209.5,2209.1,0.00678887]
[1741479547933,0.00678887,2209.5,2209.2,3.2078]
[1741479548131,0.00678887,2209.5,2209.3,0.6429]
[1741479548332,0.00678887,2209.5,2209.3,1.2674]
[1741479552255,3.21458887,2209.5,2209.3,0.6429]
[1741479552457,3.21458887,2209.5,2209.1,0.00678887]
[1741479552959,1.2247,2209.4,2209.1,0.00678887]
[1741479553856,1.8524,2209.4,2209.1,0.00678887]
[1741479555660,3.2078,2209.2,2209.1,0.00678887]
[1741479555856,3.2078,2209.2,2208.6,0.6289]
[1741479556055,3.2078,2209.1,2208.6,0.6289]
[1741479556368,5.1758,2209.1,2208.6,0.6289]
[1741479556867,3.2078,2208.8,2208.5,0.6119]
[1741479557051,0.5929,2208.7,2208.6,0.00678887]
[1741479557251,1.8439,2208.7,2208.6,0.00678887]
[1741479557456,3.8119,2208.7,2208.0,1.2415]
[1741479557756,3.2078,2208.5,2208.0,1.2415]
[1741479558360,3.2078,2208.5,2208.0,0.6289]
[1741479558561,3.2078,2208.5,2208.0,0.63568887]
[1741479559167,3.8119,2208.7,2208.0,0.63568887]
[1741479560066,3.2078,2208.5,2208.0,0.63568887]
[1741479560259,3.8119,2208.7,2208.0,0.63568887]
[1741479561266,3.2078,2208.5,2208.0,0.63568887]
[1741479561557,3.8119,2208.7,2208.0,0.63568887]
[1741479562564,1.2352,2208.7,2208.0,0.63568887]
[1741479562857,3.2022,2208.7,2208.1,0.6276]
[1741479564059,3.2022,2208.7,2208.2,3.2078]
[1741479564468,3.2022,2208.7,2208.3,0.619]
[1741479566266,3.2078,2208.8,2208.4,0.54346]
[1741479566456,3.2078,2208.8,2208.5,0.6238]
[1741479567164,1.965,2209.1,2208.5,0.6238]
[1741479568367,5.1728,2209.1,2208.5,3.8316]
[1741479571065,3.2078,2208.7,2208.3,2.584]
[1741479571263,0.6377,2208.6,2208.3,2.584]
[1741479571569,1.2424,2208.6,2208.3,0.619]
[1741479577267,3.2078,2208.4,2208.0,0.00678887]
[1741479578574,1.965,2208.3,2208.0,0.00678887]
[1741479579071,0.6019,2208.2,2208.0,0.00678887]
[1741479579274,0.5968,2208.1,2208.0,0.00678887]
[1741479579669,3.8046,2208.1,2208.0,0.00678887]
[1741479579874,3.8046,2208.1,2207.6,1.2543]
[1741479580075,0.5892,2208.0,2207.6,1.2543]
[1741479580968,0.5892,2208.0,2207.6,1.26108887]
[1741479581369,0.5968,2208.1,2207.6,1.26108887]
[1741479581668,1.965,2208.3,2207.6,4.46888887]
[1741479582682,1.965,2208.3,2207.6,5.01254887]
[1741479583172,1.965,2208.3,2207.6,7.99754887]
[1741479583372,1.965,2208.3,2207.6,7.45388887]
[1741479583573,0.6224,2208.2,2207.6,9.42288887]
[1741479583773,0.6224,2208.2,2207.7,0.54363]
[1741479583975,2.5886,2208.3,2207.8,0.5911]
[1741479586282,0.6236,2208.3,2207.8,0.5911]
[1741479588084,3.8314,2208.3,2207.8,0.5911]
[1741479588282,0.6299,2208.2,2207.6,9.42288887]
[1741479588885,0.6299,2208.2,2207.7,0.598]
[1741479591592,0.6299,2208.2,2207.6,6.21508887]
[1741479591795,0.6194,2208.1,2207.6,6.21508887]
[1741479593293,0.6194,2208.1,2207.6,4.24608887]
[1741479594389,3.2078,2207.9,2207.6,4.24608887]
[1741479594992,3.2078,2207.9,2207.6,1.26108887]
[1741479596392,1.2375,2207.8,2207.6,1.26108887]
[1741479597294,1.2375,2207.8,2207.6,0.00678887]
[1741479597494,0.5986,2207.7,2207.6,0.00678887]
[1741479600693,3.2078,2207.9,2207.6,0.00678887]
[1741479602097,3.2078,2207.9,2207.7,0.09059201]
[1741479602294,1.8659,2208.1,2207.7,0.09059201]
[1741479605604,5.1728,2208.2,2207.8,1.2727]
[1741479605787,3.2078,2208.2,2207.9,0.09058381]
[1741479606191,3.2078,2208.2,2207.9,0.04074219]
[1741479606392,1.2809,2208.3,2207.9,0.04074219]
[1741479607596,0.00678887,2208.4,2207.9,0.04074219]
[1741479607795,0.00678887,2208.4,2208.0,3.2078]
[1741479607999,0.00678887,2208.4,2208.1,0.0905756]
[1741479608400,0.00678887,2208.4,2208.2,1.2256]
[1741479608599,0.00678887,2208.4,2208.3,0.0905674]
[1741479608797,0.00678887,2208.4,2208.3,0.04316572]
[1741479610606,0.00678887,2208.4,2208.3,0.67086572]
[1741479612005,0.00678887,2208.4,2208.3,0.04316572]
[1741479613704,1.963,2209.0,2208.3,3.25096572]
[1741479614007,1.963,2209.0,2208.3,5.21396572]
[1741479614207,1.963,2209.0,2208.4,0.54347]
[1741479614403,1.963,2209.0,2208.5,0.7396592]
[1741479614604,1.963,2209.0,2208.6,0.7149551]
[1741479614910,1.96978887,2209.0,2208.7,0.090551]
[1741479615400,0.00678887,2209.0,2208.7,0.090551]
[1741479616004,0.00678887,2209.0,2208.7,0.633941]
[1741479616207,0.00678887,2209.0,2208.9,3.2078]
[1741479617802,0.00678887,2209.0,2208.9,3.66634543]
[1741479618406,0.00678887,2209.0,2208.9,3.2983428]
[1741479618610,0.00678887,2209.0,2208.9,0.0905428]
[1741479620007,3.21458887,2209.0,2208.9,0.0905428]
[1741479620205,3.21458887,2209.0,2208.7,0.00678887]
[1741479620400,1.8202,2208.9,2208.7,0.00678887]
[1741479622601,1.8202,2208.9,2208.7,0.00306026]
[1741479622798,1.8202,2208.9,2208.4,3.2078]
[1741479622998,1.8202,2208.9,2208.3,0.6395]
[1741479623807,3.2078,2208.7,2208.3,0.6395]
[1741479624011,3.2078,2208.7,2208.4,0.00678887]
[1741479625113,1.8202,2208.9,2208.4,0.00678887]
[1741479628707,1.2174,2208.9,2208.4,0.55024887]
[1741479629005,1.2174,2208.9,2208.4,0.00678887]
[1741479631413,1.8037,2208.9,2208.4,0.00678887]
[1741479632114,3.2078,2208.7,2208.4,0.00678887]
[1741479637110,3.2078,2208.7,2208.4,0.00306062]
[1741479641208,3.7627,2208.9,2208.4,0.00306062]
[1741479641806,0.00678887,2209.0,2208.4,5.17086062]
[1741479642007,0.00678887,2209.0,2208.5,0.6159]
[1741479642212,0.00678887,2209.0,2208.7,3.2078]
[1741479642725,0.00678887,2209.0,2208.6,0.6018]
[1741479642913,1.27528887,2209.0,2208.6,0.6018]
[1741479643112,1.90838887,2209.0,2208.6,0.6018]
[1741479644921,1.27528887,2209.0,2208.6,0.6018]
[1741479645320,0.64518887,2209.0,2208.6,0.6018]
[1741479645724,0.00678887,2209.0,2208.6,0.6018]
[1741479646425,0.00678887,2209.0,2208.7,3.2078]
[1741479647818,0.00678887,2209.0,2208.7,3.7512]
[1741479648218,0.00678887,2209.0,2208.8,1.959]
[1741479648413,0.00678887,2209.0,2208.9,0.6031]
[1741479648721,0.00678887,2209.0,2208.9,1.2507]
[1741479649431,0.6365,2209.3,2208.9,1.2507]
[1741479649825,1.2486,2209.4,2209.0,0.6316]
[1741479650016,1.2486,2209.4,2209.1,0.0905346]
[1741479651118,0.6469,2209.4,2209.1,0.0905346]
[1741479651327,3.21458887,2209.5,2209.1,0.0905346]
[1741479654020,0.6413,2209.4,2209.1,0.0905346]
[1741479662325,3.21458887,2209.5,2209.1,0.0905346]
[1741479674532,3.21458887,2209.5,2208.9,2.985]
[1741479677743,3.2078,2209.2,2208.7,3.2078]
[1741479677937,1.8591,2209.1,2208.7,3.2078]
[1741479678238,3.2078,2208.9,2208.4,0.00306062]
[1741479678447,3.2078,2208.5,2208.4,0.00306062]
[1741479679538,3.2078,2208.5,2208.0,3.2078]
[1741479679845,1.958,2208.4,2208.0,3.2078]
[1741479680044,0.5977,2208.3,2208.0,3.2078]
[1741479680250,0.6292,2208.2,2207.7,4.4803]
[1741479680752,0.6292,2208.2,2207.7,4.48708887]
[1741479680753,0.63598887,2208.2,2207.7,4.48708887]
[1741479682052,3.84378887,2208.2,2207.7,4.48708887]
[1741479682250,3.84378887,2208.2,2207.7,4.84895951]
[1741479683249,3.84378887,2208.2,2207.7,3.86438887]
[1741479683747,3.84378887,2208.2,2207.7,3.21458887]
[1741479685153,3.84378887,2208.2,2207.7,3.82318887]
[1741479687754,3.84378887,2208.2,2207.7,3.21458887]
[1741479691350,0.63598887,2208.2,2207.7,0.00678887]
[1741479691561,3.2078,2208.0,2207.7,0.00678887]
[1741479693762,3.2078,2208.0,2207.7,0.60638887]
[1741479693958,3.2078,2208.0,2207.7,1.20398887]
[1741479694856,0.00678887,2208.2,2207.7,1.20398887]
[1741479697454,3.2078,2208.0,2207.7,0.00678887]
[1741479697662,1.7976,2207.9,2207.7,0.00678887]
[1741479698867,5.1668,2208.0,2207.7,0.00678887]
[1741479699066,0.00678887,2208.2,2207.7,0.00678887]
[1741479712462,0.0788564,2208.8,2207.7,0.00678887]
[1741479712463,2.65066238,2208.6,2208.1,3.2078]
[1741479712662,3.2078,2208.9,2208.4,3.2078]
[1741479712869,3.2078,2208.9,2208.4,1.53704565]
[1741479713168,3.2078,2208.9,2208.2,1.8592]
[1741479713363,3.2078,2208.9,2208.3,0.54349]
[1741479713563,0.00678887,2208.8,2208.3,0.54349]
[1741479714862,0.00678887,2208.8,2208.2,1.8592]
[1741479715062,0.00678887,2208.8,2208.4,0.54347]
[1741479715463,0.00678887,2208.8,2208.3,0.54349]
[1741479715659,0.00678887,2208.8,2208.4,3.2078]
[1741479716079,0.00678887,2208.8,2208.4,3.75126]
[1741479716371,0.00678887,2208.8,2208.5,0.54345]
[1741479716865,0.00678887,2208.8,2208.6,0.5916]
[1741479717065,0.00678887,2208.8,2208.7,1.244]
[1741479718667,3.21458887,2208.8,2208.5,4.944]
[1741479718864,3.21458887,2208.8,2208.5,2.985]
[1741479719067,1.8582,2208.7,2208.5,2.985]
[1741479719267,0.6265,2208.7,2208.5,2.985]
[1741479719872,1.2372,2208.7,2208.5,2.985]
[1741479721579,0.6265,2208.7,2208.5,2.985]
[1741479721776,5.17658887,2208.8,2208.6,0.6109]
[1741479722979,5.17658887,2208.8,2208.3,1.2333]
[1741479723176,5.17658887,2208.8,2208.4,0.6109]
[1741479724475,5.17658887,2208.8,2208.4,1.15437]
[1741479724680,0.00678887,2208.8,2208.4,1.15437]
[1741479725081,0.00678887,2208.8,2208.4,3.12037]
[1741479725285,0.00678887,2208.8,2208.5,0.54343]
[1741479725777,0.00678887,2208.8,2208.4,6.32816]
[1741479726483,0.00678887,2208.8,2208.4,5.7847]
[1741479726684,0.00678887,2208.8,2208.4,8.7697]
[1741479727273,0.00678887,2208.8,2208.7,0.5434]
[1741479727477,5.0515,2209.4,2208.7,3.2078]
[1741479727478,4.4479,2209.4,2208.7,3.2078]
[1741479727783,4.4479,2209.4,2208.7,3.75119]
[1741479728078,4.4479,2209.4,2208.8,1.882]
[1741479728273,4.4479,2209.4,2208.8,2.42537]
[1741479728690,0.00678887,2209.3,2208.9,0.00678887]
[1741479731284,0.63218887,2209.3,2208.9,0.00678887]
[1741479732474,0.00678887,2209.3,2208.9,0.00678887]
[1741479732683,0.00678887,2209.3,2208.9,0.55012887]
[1741479732874,0.00678887,2209.3,2208.9,0.00678887]
[1741479733781,0.61398887,2209.3,2208.9,0.00678887]
[1741479736483,3.2078,2209.1,2208.9,0.00678887]
[1741479736781,1.2664,2209.0,2208.9,0.00678887]
[1741479737582,1.2664,2209.0,2208.4,5.1718]
[1741479738589,3.2078,2208.8,2208.3,1.1945]
[1741479738788,0.6365,2208.7,2208.5,0.00678887]
[1741479739189,0.644,2208.6,2208.5,0.00678887]
[1741479740286,0.644,2208.6,2208.5,0.00345359]
[1741479740587,0.644,2208.6,2208.0,1.2637]
[1741479740785,3.823,2208.5,2207.8,3.2078]
[1741479741089,3.823,2208.5,2207.8,4.4715]
[1741479741688,3.823,2208.5,2207.9,0.55037887]
[1741479741888,0.6152,2208.5,2208.2,3.2078]
[1741479742288,0.644,2208.6,2208.2,3.2078]
[1741479742289,5.1758,2208.8,2208.3,1.289]
[1741479742485,5.1758,2208.8,2208.3,1.9338]
[1741479743494,3.2078,2208.8,2208.3,1.9338]
[1741479744088,1.9393,2209.1,2208.4,0.54346]
[1741479744389,1.9393,2209.1,2208.5,3.2078]
[1741479744894,1.9393,2209.1,2208.5,5.1798]
[1741479745992,3.2078,2209.2,2208.6,0.54341]
[1741479746186,3.2078,2209.2,2208.6,3.52841]
[1741479746388,3.2078,2209.2,2208.7,0.6167]
[1741479746688,3.2078,2209.2,2208.8,1.2411]
[1741479748099,3.2078,2209.2,2208.8,0.6398]
[1741479748297,0.5889,2209.1,2208.8,0.6398]
[1741479751616,3.2078,2209.2,2208.8,0.6398]
[1741479751810,3.2078,2209.5,2208.9,2.985]
[1741479752109,3.20101113,2209.5,2209.0,2.51531]
[1741479752308,3.20101113,2209.5,2209.1,0.5935]
[1741479752511,3.20101113,2209.5,2209.1,1.1904]
[1741479752906,3.20101113,2209.5,2209.1,1.19718887]
[1741479752907,3.2078,2209.5,2209.1,1.19718887]
[1741479753109,0.6197,2209.4,2209.1,1.19718887]
[1741479753310,3.2078,2209.5,2209.1,1.19718887]
[1741479753509,3.2078,2209.5,2209.1,1.74047887]
[1741479753910,3.2078,2209.5,2209.1,1.19718887]
[1741479754316,3.2078,2209.5,2209.1,1.74048887]
[1741479754617,3.2078,2209.5,2209.1,1.19718887]
[1741479754915,3.2078,2209.5,2209.1,1.74047887]
[1741479755115,3.2078,2209.5,2209.1,1.19718887]
[1741479755616,3.2078,2209.5,2209.1,4.18218887]
[1741479756120,3.2078,2209.5,2209.1,4.72548887]
[1741479756811,0.00678887,2209.5,2209.1,7.93328887]
[1741479757018,0.00678887,2209.5,2209.1,7.38998887]
[1741479757212,3.2078,2209.9,2209.3,0.54323]
[1741479757412,3.2078,2209.9,2209.4,3.8369]
[1741479757612,3.2078,2209.9,2209.5,0.6174]
[1741479757811,3.2078,2209.9,2209.5,1.2444]
[1741479758116,3.2078,2209.9,2209.6,0.09051412]
[1741479758320,3.8132,2209.9,2209.6,0.09051412]
[1741479760321,0.6054,2209.9,2209.6,0.09051412]
[1741479770734,0.6054,2209.9,2209.7,0.6138]
[1741479770937,0.6054,2209.9,2209.8,0.09050592]
[1741479773832,0.6054,2209.9,2209.8,0.04329339]
[1741479774232,0.6054,2209.9,2209.8,0.02203909]
[1741479775338,0.6054,2209.9,2209.4,3.2078]
[1741479775640,3.2078,2209.7,2209.2,0.36602024]
[1741479775841,0.6264,2209.6,2209.1,5.17758887]
[1741479776033,1.2133,2209.6,2209.1,5.17758887]
[1741479776235,0.6152,2209.5,2209.1,5.17758887]
[1741479777441,3.2078,2209.4,2209.1,0.00678887]
[1741479782541,0.6152,2209.5,2209.1,0.00678887]
[1741479783144,3.2078,2209.4,2209.1,0.00678887]
[1741479785945,0.6152,2209.5,2209.1,0.00678887]
[1741479791046,0.6152,2209.5,2209.1,0.59748887]
[1741479791244,0.6152,2209.5,2209.2,0.611]
[1741479794547,3.823,2209.5,2209.2,0.611]
[1741479795340,3.823,2209.5,2209.1,0.00678887]
[1741479796550,1.2133,2209.6,2209.1,0.00678887]
[1741479796848,3.2078,2209.8,2209.1,1.17037887]
[1741479797054,3.2078,2209.8,2209.1,0.62708887]
[1741479798050,3.2078,2209.8,2209.1,1.17038887]
[1741479798447,3.2078,2209.8,2209.4,0.54322]
[1741479798650,3.2078,2209.8,2209.5,1.2485]
[1741479798854,3.2078,2209.8,2209.6,0.6203]
[1741479799151,1.2073,2209.9,2209.6,0.6203]
[1741479803254,0.00678887,2210.0,2209.6,0.6203]
[1741479813267,0.00678887,2210.0,2209.5,4.4563]
[1741479814864,3.2078,2209.8,2209.2,1.958]
[1741479815067,1.8825,2209.7,2209.3,0.606]
[1741479817661,3.2078,2209.5,2209.2,0.6292]
[1741479817867,3.2078,2209.5,2209.2,1.2352]
[1741479820367,1.8825,2209.7,2209.2,1.2352]
[1741479821471,0.6269,2209.7,2209.2,1.2352]
[1741479822077,0.6269,2209.7,2209.3,0.6135]
[1741479823578,1.2193,2209.9,2209.3,0.6135]
[1741479823780,3.2078,2209.8,2209.3,0.6135]
[1741479825577,3.2078,2209.8,2209.2,1.2352]
[1741479827180,1.8544,2209.9,2209.2,1.2352]
[1741479827475,0.00678887,2210.0,2209.2,1.2352]
[1741479827476,0.61878887,2210.0,2209.4,3.75102]
[1741479827675,0.61878887,2210.0,2209.5,2.606]
[1741479827875,0.61878887,2210.0,2209.6,0.5984]
[1741479828073,0.00678887,2210.0,2209.6,1.1995]
[1741479837087,1.2206,2210.3,2209.6,1.1995]
[1741479837384,1.2206,2210.3,2209.7,3.75095]
[1741479837689,1.8461,2210.3,2209.7,3.75095]
[1741479838393,0.00678887,2210.2,2209.7,3.75095]
[1741479838593,0.00678887,2210.2,2209.8,0.54311]
[1741479838792,0.00678887,2210.2,2209.9,0.6285]
[1741479838983,0.00678887,2210.2,2209.7,3.2078]
[1741479839187,0.00678887,2210.2,2209.7,5.7808]
[1741479839896,0.00678887,2210.2,2209.7,6.32395]
[1741479840382,0.00678887,2210.2,2209.7,5.7808]
[1741479840892,0.00678887,2210.2,2209.7,6.32395]
[1741479841390,0.00678887,2210.2,2210.0,0.54306]
[1741479841593,4.4486,2210.9,2210.1,4.96799364]
[1741479841899,7.0244,2210.9,2210.1,7.46903364]
[1741479842690,5.0664,2210.9,2210.3,0.00678887]
[1741479843088,5.0664,2210.9,2210.4,0.09048136]
[1741479843297,5.0664,2210.9,2210.5,0.5909]
[1741479843491,5.0664,2210.9,2210.6,0.69347317]
[1741479843789,5.0664,2210.9,2210.7,0.09046908]
[1741479844000,5.0664,2210.9,2210.7,0.04610912]
[1741479844298,5.0664,2210.9,2210.7,0.01803804]
[1741479844888,5.0664,2210.9,2210.5,1.2403]
[1741479845291,1.8586,2210.9,2210.5,1.2403]
[1741479846303,1.8586,2210.9,2210.5,1.61171132]
[1741479846485,1.8586,2210.9,2210.5,0.37141132]
[1741479846691,1.8586,2210.9,2210.3,3.21458887]
[1741479846994,1.8586,2210.9,2210.4,0.6434]
[1741479848401,1.8586,2210.9,2210.4,0.99806439]
[1741479849390,1.8586,2210.9,2210.3,3.21458887]
[1741479849597,5.0664,2210.9,2210.3,3.21458887]
[1741479849993,5.0664,2210.9,2210.3,3.57502034]
[1741479850498,5.0664,2210.9,2210.3,3.21458887]